fUSD/lending_fUSD_20251206
["ID","MTS","AMOUNT","RATE_DAILY","PERIOD"]
[396505429,1765014642792,-500.0,0.00015809,2]
[396505430,1765014642801,-150.0,0.00015809,2]
[396505431,1765014642811,-417.0,0.00015809,2]
[396505432,1765014642820,-183.45380219,0.00015809,2]
[396505433,1765014642830,-932.0,0.00015809,2]
[396505434,1765014642839,-150.0,0.00015816,2]
[396505435,1765014642849,-150.0,0.00015818,2]
[396505436,1765014642860,-150.0,0.00015828,2]
[396505437,1765014642871,-314.89,0.0001583,2]
[396505438,1765014642881,-150.0,0.00015837,2]
[396505439,1765014642891,-7000.0,0.0001584,2]
[396505440,1765014642901,-150.0,0.00015854,2]
[396505441,1765014642910,-150.0,0.00015854,2]
[396505442,1765014642920,-150.0,0.00015854,2]
[396505443,1765014642930,-150.0,0.00015854,2]
[396505444,1765014642941,-150.0,0.00015854,2]
[396505445,1765014642950,-1214.9,0.00015856,2]
[396505446,1765014642961,-500.0,0.00015863,2]
[396505447,1765014642970,-500.0,0.00015863,2]
[396505448,1765014642981,-150.0,0.00015867,2]
[396505449,1765014642990,-200.0,0.00015871,2]
[396505450,1765014643001,-200.0,0.00015872,2]
[396505451,1765014643012,-200.0,0.00015872,2]
[396505452,1765014643022,-150.0,0.00015882,2]
[396505453,1765014643031,-150.0,0.00015887,2]
[396505454,1765014643040,-150.0,0.00015892,2]
[396505455,1765014643050,-4795.8497,0.000159,2]
[396505456,1765014643060,-849.32776231,0.000159,2]
[396505457,1765014643069,-1244.3366577,0.000159,2]
[396505458,1765014643079,-1244.3366577,0.000159,2]
[396505460,1765014643088,-1244.3366577,0.000159,2]
[396505462,1765014643097,-1244.3366577,0.000159,2]
[396505464,1765014643106,-1569.9988307,0.000159,2]
[396505465,1765014643115,-150.47649668,0.000159,2]
[396505468,1765014643125,-375.57178864,0.00015905,2]
[396505469,1765014643135,-150.0,0.00015905,2]
[396505470,1765014643144,-150.0,0.00015925,2]
[396505471,1765014643155,-150.0,0.00015925,2]
[396505472,1765014643164,-150.0,0.00015929,2]
[396505473,1765014643176,-150.0,0.00015935,2]
[396505474,1765014643185,-150.0,0.00015937,2]
[396505475,1765014643195,-150.0,0.00015944,2]
[396505476,1765014643205,-795.0,0.00015946,2]
[396505477,1765014643214,-1128.0,0.00015946,2]
[396505478,1765014643223,-3206.0,0.00015946,2]
[396505479,1765014643232,-500.0,0.00015946,2]
[396505480,1765014643242,-150.0,0.00015946,2]
[396505482,1765014643251,-417.0,0.00015946,2]
[396505483,1765014643261,-932.0,0.00015946,2]
[396505484,1765014643271,-3108.0,0.00015957,2]
[396505485,1765014643280,-368.84651797,0.00015957,2]
[396505486,1765014643290,-566.0,0.00015962,2]
[396505487,1765014643300,-516.18265431,0.00015964,2]
[396505488,1765014643310,-150.0,0.00015967,2]
[396505489,1765014643319,-150.0,0.00015967,2]
[396505490,1765014643329,-150.0,0.00015967,2]
[396505491,1765014643338,-7000.0,0.0001597,2]
[396505492,1765014643349,-1474.4985606,0.00015976,2]
[396505493,1765014643359,-16814.1701363,0.00015976,2]
[396505494,1765014643368,-2123.1714621,0.00015976,2]
[396505495,1765014643378,-219.37,0.00015982,2]
[396505496,1765014643387,-150.0,0.00015983,2]
[396505497,1765014643397,-500.0,0.00015984,2]
[396505498,1765014643407,-150.0,0.00015987,2]
[396505499,1765014643416,-936.48006637,0.0001599,2]
[396505500,1765014643427,-150.0,0.00015995,2]
[396505501,1765014643439,-151.0,0.00015997,2]
[396505502,1765014643450,-154.61945698,0.00015997,2]
[396505503,1765014643460,-1000.0,0.00015998,3]
[396505504,1765014643470,-500.0,0.00015999,2]
[396505505,1765014643479,-500.0,0.00015999,2]
[396505506,1765014643489,-500.0,0.00015999,2]
[396505507,1765014643499,-500.0,0.00015999,2]
[396505508,1765014643508,-1000.0,0.00015999,2]
[396505509,1765014643518,-1000.0,0.00015999,3]
[396505510,1765014643527,-342.01626432,0.00015999,2]
[396505511,1765014643539,-796701.32176446,0.00016,4]
[396505512,1765014643552,-859052.84413756,0.00016,4]
[396505513,1765014643562,-151.77141743,0.00016,4]
[396505514,1765014643574,-150.0,0.00016,4]
[396505515,1765014643583,-150.0,0.00016,4]
[396505516,1765014643592,-150.67371232,0.00016,4]
[396505517,1765014643603,-150.93378284,0.00016,4]
[396505518,1765014643613,-152.01489558,0.00016,4]
[396505519,1765014643624,-150.0,0.00016,4]
[396505520,1765014643635,-150.0,0.00016,4]
[396505521,1765014643645,-155.81906527,0.00016,4]
[396505522,1765014643654,-151.78638188,0.00016,4]
[396505523,1765014643663,-150.43281348,0.00016,4]
[396505524,1765014643674,-288.74514869,0.00016,2]
[396505525,1765014643683,-343.71020166,0.00016,2]
[396505526,1765014643692,-175.44413782,0.00016,4]
[396505527,1765014643702,-151.78488323,0.00016,4]
[396505528,1765014643711,-150.0,0.00016005,2]
[396505529,1765014643720,-9331.97398525,0.00016009,2]
[396505530,1765014643729,-150.0,0.00016016,2]
[396505531,1765014643739,-150.0,0.00016021,2]
[396505532,1765014643748,-501.53,0.00016022,2]
[396505533,1765014643757,-150.0,0.00016031,2]
[396505534,1765014643772,-553.0,0.00016035,2]
[396505535,1765014643781,-150.0,0.00016037,2]
[396505536,1765014643791,-211.03,0.00016042,2]
[396505537,1765014643800,-150.0,0.00016043,2]
[396505538,1765014643809,-150.0,0.00016043,2]
[396505539,1765014643818,-150.0,0.00016052,2]
[396505540,1765014643827,-150.0,0.0001606,2]
[396505541,1765014643836,-150.0,0.00016066,2]
[396505542,1765014644174,-150.0,0.0001608,2]
[396505543,1765014644184,-795.0,0.00016083,2]
[396505544,1765014644194,-1128.0,0.00016083,2]
[396505545,1765014644206,-3206.0,0.00016083,2]
[396505546,1765014644215,-500.0,0.00016083,2]
[396505547,1765014644225,-150.0,0.00016083,2]
[396505548,1765014644236,-417.0,0.00016083,2]
[396505549,1765014644247,-932.0,0.00016083,2]
[396505550,1765014644256,-150.0,0.00016087,2]
[396505551,1765014644266,-150.0,0.00016097,2]
[396505552,1765014644275,-150.0,0.00016098,2]
[396505553,1765014644286,-566.0,0.00016099,2]
[396505554,1765014644296,-1569.99883065,0.000161,2]
[396505555,1765014644306,-9999.99,0.00016116,2]
[396505556,1765014644315,-150.0,0.00016118,2]
[396505557,1765014644324,-168.0,0.00016118,2]
[396505558,1765014644333,-1214.9,0.0001613,2]
[396505559,1765014644343,-503.93214837,0.00016131,2]
[396505560,1765014644352,-201.32298322,0.00016131,2]
[396505561,1765014644361,-201.67121369,0.00016131,2]
[396505562,1765014644371,-1000.0,0.00016131,2]
[396505563,1765014644381,-291.76259641,0.00016137,4]
[396505564,1765014644390,-150.0,0.00016137,2]
[396505565,1765014644400,-150.0,0.00016137,2]
[396505566,1765014644409,-150.0,0.00016137,2]
[396505567,1765014644419,-150.0,0.00016137,2]
[396505568,1765014644429,-150.0,0.00016137,2]
[396505569,1765014644438,-150.0,0.00016137,2]
[396505570,1765014644448,-150.0,0.00016137,2]
[396505571,1765014644457,-150.0,0.00016156,2]
[396505572,1765014644468,-566.0,0.00016162,2]
[396505573,1765014644479,-150.0,0.00016176,2]
[396505574,1765014644490,-150.0,0.00016177,2]
[396505575,1765014644500,-150.0,0.00016187,2]
[396505576,1765014644510,-150.0,0.00016194,2]
[396505577,1765014644519,-5000.00483672,0.000162,5]
[396505578,1765014644530,-384.69732764,0.00016206,2]
[396505579,1765014644540,-150.0,0.00016208,2]
[396505580,1765014644551,-150.0,0.00016214,2]
[396505581,1765014644562,-795.0,0.0001622,2]
[396505582,1765014644571,-1128.0,0.0001622,2]
[396505583,1765014644580,-3206.0,0.0001622,2]
[396505584,1765014644589,-500.0,0.0001622,2]
[396505585,1765014644598,-156.59661348,0.0001622,2]
[396505586,1765014644607,-417.0,0.0001622,2]
[396505587,1765014644617,-932.0,0.0001622,2]
[396505588,1765014644630,-7000.0,0.0001622,2]
[396505589,1765014644639,-150.0,0.00016222,2]
[396505590,1765014644648,-150.0,0.00016231,2]
[396505591,1765014644657,-150.0,0.00016231,2]
[396505592,1765014644667,-9331.97398525,0.00016232,2]
[396505593,1765014644677,-849.32776227,0.00016233,2]
[396505594,1765014644686,-150.0,0.00016237,2]
[396505595,1765014644695,-219.37,0.00016239,2]
[396505596,1765014644705,-150.0,0.00016243,2]
[396505597,1765014644714,-553.0,0.00016245,2]
[396505598,1765014644724,-150.0,0.00016253,2]
[396505599,1765014644733,-150.0,0.00016258,2]
[396505600,1765014644742,-501.53,0.00016261,2]
[396505601,1765014644751,-150.0,0.00016269,2]
[396505602,1765014644761,-211.03,0.00016275,2]
[396505603,1765014644770,-553.0,0.00016276,2]
[396505604,1765014644779,-150.0,0.00016279,2]
[396505605,1765014644788,-150.0,0.00016287,2]
[396505606,1765014644798,-150.0,0.00016291,2]
[396505607,1765014644807,-500.0,0.00016299,2]
[396505608,1765014644816,-87341.10775808,0.000163,2]
[396505609,1765014644826,-1569.99883065,0.000163,2]
[396505610,1765014644835,-150.0,0.00016307,2]
[396505611,1765014644844,-150.0,0.00016307,2]
[396505612,1765014644854,-150.0,0.00016307,2]
[396505613,1765014644864,-163.94,0.00016317,2]
[396505614,1765014644873,-150.0,0.0001633,2]
[396505615,1765014644882,-150.0,0.00016337,2]
[396505616,1765014644891,-150.0,0.00016339,2]
[396505617,1765014644900,-150.0,0.00016345,2]
[396505618,1765014644911,-420.0,0.00016346,2]
[396505619,1765014644922,-420.0,0.00016346,2]
[396505620,1765014644932,-300.0,0.00016346,2]
[396505621,1765014644943,-289.8175195,0.00016346,2]
[396505622,1765014644954,-300.0,0.00016346,2]
[396505623,1765014644966,-195.0,0.00016346,2]
[396505624,1765014644976,-150.0,0.00016349,2]
[396505625,1765014644986,-150.0,0.00016349,2]
[396505626,1765014644997,-795.0,0.00016357,2]
[396505627,1765014645006,-1128.0,0.00016357,2]
[396505628,1765014645015,-3206.0,0.00016357,2]
[396505629,1765014645025,-500.0,0.00016357,2]
[396505630,1765014645034,-417.0,0.00016357,2]
[396505631,1765014645043,-932.0,0.00016357,2]
[396505632,1765014645053,-150.0,0.00016369,2]
[396505633,1765014645062,-150.0,0.00016382,2]
[396505634,1765014645073,-1680.0,0.00016385,2]
[396505635,1765014645083,-150.0,0.00016387,2]
[396505636,1765014645092,-150.0,0.00016392,2]
[396505637,1765014645102,-201.0,0.000164,2]
[396505638,1765014645112,-282.0,0.000164,2]
[396505639,1765014645122,-161.0,0.000164,2]
[396505640,1765014645131,-162.42091449,0.000164,2]
[396505641,1765014645140,-150.47649668,0.000164,2]
[396505642,1765014645149,-1214.9,0.00016404,2]
[396505643,1765014645158,-150.0,0.00016407,2]
[396505644,1765014645167,-150.0,0.0001642,2]
[396505645,1765014645177,-150.0,0.0001642,2]
[396505646,1765014645188,-150.0,0.0001642,2]
[396505647,1765014645200,-150.0,0.0001642,2]
[396505648,1765014645211,-150.0,0.0001642,2]
[396505649,1765014645222,-150.0,0.00016437,2]
[396505650,1765014645232,-500.0,0.00016438,2]
[396505651,1765014645242,-500.0,0.00016438,2]
[396505652,1765014645251,-259.23417085,0.00016438,2]
[396505653,1765014645261,-500.0,0.00016438,2]
[396505654,1765014645270,-500.0,0.00016438,2]
[396505655,1765014645280,-500.0,0.00016438,2]
[396505656,1765014645289,-500.0,0.00016438,2]
[396505657,1765014645299,-500.0,0.00016438,2]
[396505658,1765014645308,-500.0,0.00016438,2]
[396505659,1765014645318,-500.0,0.00016438,2]
[396505660,1765014645327,-500.0,0.00016438,2]
[396505661,1765014645337,-500.0,0.00016438,2]
[396505662,1765014645347,-9981.74,0.00016438,2]
[396505663,1765014645356,-5371.5,0.00016438,2]
[396505664,1765014645366,-24994.38,0.00016438,2]
[396505665,1765014645375,-164.14,0.0001644,2]
[396505666,1765014645385,-150.0,0.00016446,2]
[396505667,1765014645395,-9331.97398525,0.00016455,2]
[396505668,1765014645404,-150.0,0.00016455,2]
[396505669,1765014645414,-196.21411934,0.00016456,2]
[396505670,1765014645424,-300.0,0.00016456,2]
[396505671,1765014645434,-150.0,0.00016458,2]
[396505672,1765014645443,-7000.0,0.0001647,2]
[396505673,1765014645453,-150.0,0.00016477,2]
[396505674,1765014645463,-150.0,0.00016484,2]
[396505675,1765014645472,-150.0,0.00016487,2]
[396505676,1765014645481,-150.0,0.00016491,2]
[396505677,1765014645491,-500.0,0.00016491,2]
[396505678,1765014645500,-500.0,0.00016492,2]
[396505679,1765014645509,-500.0,0.00016493,2]
[396505680,1765014645518,-795.0,0.00016494,2]
[396505681,1765014645527,-1128.0,0.00016494,2]
[396505682,1765014645536,-3206.0,0.00016494,2]
[396505683,1765014645545,-500.0,0.00016494,2]
[396505684,1765014645555,-417.0,0.00016494,2]
[396505685,1765014645564,-932.0,0.00016494,2]
[396505686,1765014645574,-500.0,0.00016494,2]
[396505687,1765014645600,-500.0,0.00016495,2]
[396505688,1765014645609,-150.0,0.00016496,2]
[396505689,1765014645619,-500.0,0.00016496,2]
[396505690,1765014645633,-500.0,0.00016497,2]
[396505691,1765014645643,-500.0,0.00016498,2]
[396505692,1765014645653,-500.0,0.00016499,2]
[396505693,1765014645663,-1569.99883065,0.000165,2]
[396505694,1765014645674,-500.0,0.000165,2]
[396505695,1765014645684,-150.0,0.00016501,2]
[396505696,1765014645694,-500.0,0.00016501,2]
[396505697,1765014645704,-500.0,0.00016502,2]
[396505698,1765014645713,-500.0,0.00016503,2]
[396505699,1765014645723,-500.0,0.00016504,2]
[396505700,1765014645732,-500.0,0.00016505,2]
[396505701,1765014645743,-500.0,0.00016506,2]
[396505702,1765014645752,-500.0,0.00016507,2]
[396505703,1765014645762,-500.0,0.00016508,2]
[396505704,1765014645772,-500.0,0.00016509,2]
[396505705,1765014645781,-500.0,0.0001651,2]
[396505706,1765014645791,-543.284088,0.00016511,2]
[396505707,1765014645800,-292.49,0.00016516,2]
[396505708,1765014645810,-278.63,0.00016518,2]
[396505709,1765014645819,-19871.0,0.00016521,2]
[396505710,1765014645828,-150.0,0.00016523,2]
[396505711,1765014645838,-150.0,0.00016533,2]
[396505712,1765014645847,-278.63,0.00016536,2]
[396505713,1765014645856,-150.0,0.00016537,2]
[396505714,1765014645865,-300.0,0.00016537,2]
[396505715,1765014645875,-195.0,0.00016537,2]
[396505716,1765014645885,-300.0,0.00016537,2]
[396505717,1765014645894,-297.04785907,0.00016539,3]
[396505718,1765014645903,-250.0,0.00016539,2]
[396505719,1765014645912,-195.0,0.00016539,2]
[396505720,1765014645922,-250.0,0.00016539,2]
[396505721,1765014645931,-300.0,0.00016539,2]
[396505722,1765014645940,-175.86,0.00016539,2]
[396505723,1765014645948,-1323.0,0.00016549,2]
[396505724,1765014645958,-1605.0,0.00016549,2]
[396505725,1765014645967,-3446.0,0.00016549,2]
[396505726,1765014645977,-562.0,0.00016549,2]
[396505727,1765014645986,-6513.0,0.00016549,2]
[396505728,1765014645995,-278.62855814,0.00016553,2]
[396505729,1765014646004,-150.0,0.00016562,2]
[396505730,1765014646013,-150.0,0.00016562,2]
[396505731,1765014646022,-150.0,0.00016562,2]
[396505732,1765014646032,-150.0,0.00016562,2]
[396505733,1765014646041,-849.32776227,0.00016567,2]
[396505734,1765014646050,-175.85147244,0.0001657,2]
[396505735,1765014646059,-150.0,0.00016571,2]
[396505736,1765014646068,-553.0,0.00016574,2]
[396505737,1765014646078,-500.0,0.00016575,2]
[396505738,1765014646088,-150.0,0.00016582,2]
[396505739,1765014646097,-364.0,0.00016583,2]
[396505740,1765014646107,-150.0,0.00016587,2]
[396505741,1765014646117,-553.0,0.00016587,2]
[396505742,1765014646126,-150.0,0.000166,2]
[396505743,1765014646135,-150.0,0.00016609,2]
[396505744,1765014646144,-150.0,0.00016609,2]
[396505745,1765014646154,-384.69732764,0.00016629,2]
[396505746,1765014646164,-795.0,0.00016631,2]
[396505747,1765014646173,-1128.0,0.00016631,2]
[396505748,1765014646183,-3206.0,0.00016631,2]
[396505749,1765014646192,-500.0,0.00016631,2]
[396505750,1765014646202,-417.0,0.00016631,2]
[396505751,1765014646211,-932.0,0.00016631,2]
[396505752,1765014646219,-150.0,0.00016632,2]
[396505753,1765014646229,-150.0,0.00016637,2]
[396505754,1765014646239,-150.0,0.00016639,2]
[396505755,1765014646248,-150.0,0.00016647,2]
[396505756,1765014646257,-150.0,0.00016647,2]
[396505757,1765014646267,-150.0,0.00016647,2]
[396505758,1765014646276,-150.0,0.00016663,2]
[396505759,1765014646286,-150.0,0.00016668,2]
[396505760,1765014646297,-1600.0,0.00016669,2]
[396505761,1765014646307,-169.39,0.00016674,2]
[396505762,1765014646317,-9331.97398525,0.00016677,2]
[396505763,1765014646327,-150.0,0.00016677,2]
[396505764,1765014646336,-1214.9,0.00016678,2]
[396505765,1765014646345,-1000.0,0.00016679,2]
[396505766,1765014646354,-150.0,0.00016684,2]
[396505767,1765014646363,-150.0,0.00016687,2]
[396505768,1765014646373,-800.0,0.000167,2]
[396505769,1765014646382,-1569.99883065,0.000167,2]
[396505770,1765014646392,-150.0,0.00016703,2]
[396505771,1765014646401,-500.0,0.00016712,2]
[396505772,1765014646412,-176.23,0.00016712,2]
[396505773,1765014646421,-150.0,0.00016716,2]
[396505774,1765014646431,-7000.0,0.0001672,2]
[396505775,1765014646441,-230.24,0.00016721,2]
[396505776,1765014646450,-150.0,0.00016722,2]
[396505777,1765014646460,-150.0,0.00016732,2]
[396505778,1765014646469,-150.0,0.00016737,2]
[396505779,1765014646478,-150.0,0.00016744,2]
[396505780,1765014646487,-150.0,0.00016755,2]
[396505781,1765014646497,-150.0,0.0001676,2]
[396505782,1765014646508,-795.0,0.00016768,2]
[396505783,1765014646517,-1128.0,0.00016768,2]
[396505784,1765014646526,-3206.0,0.00016768,2]
[396505785,1765014646605,-500.0,0.00016768,2]
[396505786,1765014646616,-417.0,0.00016768,2]
[396505787,1765014646630,-932.0,0.00016768,2]
[396505788,1765014646640,-647.71403907,0.00016773,2]
[396505789,1765014646649,-500.0,0.00016773,2]
[396505790,1765014646658,-500.0,0.00016773,2]
[396505791,1765014646668,-500.0,0.00016773,2]
[396505792,1765014646678,-500.0,0.00016773,2]
[396505793,1765014646687,-500.0,0.00016773,2]
[396505794,1765014646697,-500.0,0.00016773,2]
[396505795,1765014646706,-500.0,0.00016773,2]
[396505796,1765014646715,-500.0,0.00016773,2]
[396505797,1765014646725,-500.0,0.00016773,2]
[396505798,1765014646735,-524.99444915,0.00016773,2]
[396505799,1765014646745,-500.0,0.00016773,2]
[396505800,1765014646756,-500.0,0.00016773,2]
[396505801,1765014646766,-500.0,0.00016773,2]
[396505803,1765014646775,-500.0,0.00016773,2]
[396505804,1765014646784,-500.0,0.00016773,2]
[396505805,1765014646794,-500.0,0.00016773,2]
[396505806,1765014646803,-500.0,0.00016773,2]
[396505807,1765014646812,-500.0,0.00016773,2]
[396505808,1765014646820,-500.0,0.00016773,2]
[396505809,1765014646830,-500.0,0.00016773,2]
[396505810,1765014646839,-150.0,0.00016774,2]
[396505811,1765014646850,-150.0,0.00016774,2]
[396505812,1765014646862,-553.0,0.00016779,2]
[396505813,1765014646871,-150.0,0.00016786,2]
[396505814,1765014646880,-150.0,0.00016793,2]
[396505815,1765014646891,-150.0,0.00016798,2]
[396505816,1765014646901,-150.0,0.00016798,2]
[396505817,1765014646911,-10000.0,0.000168,2]
[396505818,1765014646922,-150.0,0.00016816,2]
[396505819,1765014646931,-150.0,0.00016825,2]
[396505820,1765014646945,-150.0,0.00016832,2]
[396505821,1765014646955,-150.0,0.00016835,2]
[396505822,1765014646968,-150.0,0.00016836,2]
[396505823,1765014646978,-150.0,0.00016845,2]
[396505824,1765014646988,-500.0,0.00016849,2]
[396505825,1765014646997,-150.0,0.0001687,2]
[396505826,1765014647006,-150.0,0.00016873,2]
[396505827,1765014647015,-364.0,0.00016878,2]
[396505828,1765014647024,-150.0,0.0001688,2]
[396505829,1765014647034,-150.0,0.00016886,2]
[396505830,1765014647042,-500.0,0.00016899,2]
[396505831,1765014647051,-849.32776227,0.000169,2]
[396505832,1765014647060,-2534.94863569,0.000169,2]
[396505833,1765014647070,-215.48627334,0.000169,2]
[396505834,1765014647079,-1569.99883065,0.000169,2]
[396505835,1765014647088,-297.42503577,0.000169,2]
[396505836,1765014647097,-1297.46882781,0.000169,2]
[396505837,1765014647106,-9331.97398525,0.000169,2]
[396505838,1765014647116,-150.0,0.00016901,2]
[396505839,1765014647125,-795.0,0.00016905,2]
[396505840,1765014647134,-1128.0,0.00016905,2]
[396505841,1765014647144,-3206.0,0.00016905,2]
[396505842,1765014647153,-500.0,0.00016905,2]
[396505843,1765014647162,-417.0,0.00016905,2]
[396505844,1765014647171,-932.0,0.00016905,2]
[396505845,1765014647180,-150.0,0.00016905,2]
[396505846,1765014647188,-150.0,0.00016909,2]
[396505847,1765014647197,-150.0,0.00016911,2]
[396505848,1765014647207,-150.0,0.00016916,2]
[396505849,1765014647216,-150.0,0.00016936,2]
[396505850,1765014647225,-163.94,0.00016939,2]
[396505851,1765014647235,-150.0,0.00016948,2]
[396505852,1765014647244,-150.0,0.00016949,2]
[396505853,1765014647253,-1214.97583768,0.00016952,2]
[396505854,1765014647262,-7000.0,0.0001697,2]
[396505855,1765014647271,-500.0,0.00016986,2]
[396505856,1765014647282,-518.5,0.00016986,2]
[396505857,1765014647291,-157.42998843,0.00016986,2]
[396505858,1765014647300,-150.0,0.00016986,2]
[396505859,1765014647309,-150.0,0.00016986,2]
[396505860,1765014647319,-187.51766019,0.00016986,2]
[396505861,1765014647328,-150.0,0.00016986,2]
[396505862,1765014647337,-150.0,0.00016986,2]
[396505863,1765014647347,-150.0,0.00016986,2]
[396505864,1765014647356,-150.0,0.00016986,2]
[396505865,1765014647365,-150.0,0.00016986,2]
[396505866,1765014647374,-150.0,0.00016986,2]
[396505867,1765014647383,-156.13124317,0.00016986,2]
[396505868,1765014647392,-150.0,0.00016986,2]
[396505869,1765014647402,-150.0,0.00016986,2]
[396505870,1765014647412,-936.48006637,0.0001699,2]
[396505871,1765014647421,-936.48006637,0.0001699,2]
[396505872,1765014647430,-588.90373772,0.00016999,2]
[396505873,1765014647439,-300.0,0.00016999,2]
[396505874,1765014647448,-2705448.57878559,0.00017,2]
[396505875,1765014647457,-837077.95680304,0.00017,2]
[396505876,1765014647466,-908801.72470436,0.00017,2]
[396505877,1765014647553,-2013.14743413,0.00017,2]
[396505878,1765014648325,-1.7e-07,0.00017,2]
[396505879,1765014649893,-506.51102763,0.00015035,2]
[396505880,1765014649903,-150.0,0.00015672,2]
[396505881,1765014649912,-150.0,0.00015672,2]
[396505882,1765014649922,-9178.78777829,0.00015787,2]
[396505883,1765014649930,-150.0,0.00015809,2]
[396505884,1765014649939,-1042.70034512,0.000159,2]
[396505885,1765014656776,-506.09206684,0.00015135,2]
[396505886,1765014674030,269.93334498,0.00014934,2]
[396505887,1765014674929,500.0,0.00014934,2]
[396505888,1765014675328,500.0,0.00014934,2]
[396505889,1765014675371,500.0,0.00014934,2]
[396505890,1765014675412,500.0,0.00014934,2]
[396505891,1765014675455,388.68343742,0.00014934,2]
[396505892,1765014675513,500.0,0.00014934,2]
[396505893,1765014675555,500.0,0.00014934,2]
[396505894,1765014675622,500.0,0.00014934,2]
[396505895,1765014675678,500.0,0.00014934,2]
[396505896,1765014675736,500.0,0.00014934,2]
[396505897,1765014702441,500.0,0.00014934,2]
[396505898,1765014703536,500.0,0.00015035,2]
[396505899,1765014703764,500.0,0.00015035,2]
[396505900,1765014731429,1930.01,7.926e-05,2]
[396505901,1765014731606,1930.01,8.343e-05,2]
[396505902,1765014731777,1930.01,8.76e-05,2]
[396505903,1765014732006,1930.01,9.177e-05,2]
[396505904,1765014732202,779.97,9.594e-05,2]
[396505905,1765014732226,1150.04,9.594e-05,2]
[396505906,1765014732389,1930.01,0.00010011,2]
[396505907,1765014732579,1930.01,0.00010429,2]
[396505908,1765014732786,1930.01,0.00010846,2]
[396505909,1765014732965,1930.01,0.00011263,2]
[396505910,1765014733222,1129.93,0.0001168,2]
[396505911,1765014733246,800.08,0.0001168,2]
[396505912,1765014733377,1930.01,0.00012097,2]
[396505913,1765014733605,1930.01,0.00012514,2]
[396505914,1765014733793,1930.01,0.00012931,2]
[396505915,1765014734002,1930.01,0.00013349,2]
[396505916,1765014734134,1479.89,0.00013766,2]
[396505917,1765014734159,450.12,0.00013766,2]
[396505918,1765014734339,1930.01,0.00014183,2]
[396505919,1765014735188,1930.01,0.000146,2]
[396505920,1765014735255,1930.01,0.00015017,2]
[396505921,1765014735316,1930.01,0.00015434,2]
[396505922,1765014737877,1829.85,0.00014935,2]
[396505923,1765014737908,10000.01,0.00014935,2]
[396505924,1765014737934,10000.01,0.00014935,2]
[396505925,1765014737962,10000.01,0.00014935,2]
[396505926,1765014737989,10000.01,0.00014935,2]
[396505927,1765014781332,300.0,0.00014934,2]
[396505928,1765014804363,1315.582396,0.0001486,2]
[396505929,1765014830105,240.43582981,0.00014835,2]
[396505930,1765014844062,150.0,0.00014934,2]
[396505931,1765014847005,852.12259621,0.00014835,2]
[396505932,1765014901154,1200.0,0.00014934,2]
[396505933,1765014901199,300.0,0.00014934,2]
[396505934,1765014901397,300.0,0.00014934,2]
[396505935,1765014929675,4665.98699267,0.00014835,2]